[Event "January 9 Late 2024"]
[Site "https://www.chess.com"]
[Date "2024.01.09"]
[Round "5"]
[White "Toktomushev, Teimur"]
[Black "Ozdemir, Serhan Berat"]
[Result "0-1"]
[Board "111"]
[TimeControl "180+1"]
[WhiteFideId "14176726"]
[BlackFideId "6374611"]
[WhiteElo "2448"]
[BlackElo "2588"]
[WhiteTeam "UKR"]
[BlackTeam "TUR"]
[WhiteClock "0:00:00"]
[BlackClock "0:00:03"]

1. d4 {[%clk 0:02:51]}  Nf6 {[%clk 0:02:52]} 2. c4 {[%clk 0:02:51]}  g6 {[%clk 0:02:50]} 3. Nc3 {[%clk 0:02:51]}  Bg7 {[%clk 0:02:50]} 4. e4 {[%clk 0:02:51]}  d6 {[%clk 0:02:51]} 5. f3 {[%clk 0:02:52]}  O-O {[%clk 0:02:52]} 6. Be3 {[%clk 0:02:53]}  c5 {[%clk 0:02:53]} 7. Nge2 {[%clk 0:02:53]}  Nc6 {[%clk 0:02:51]} 8. d5 {[%clk 0:02:53]}  Ne5 {[%clk 0:02:51]} 9. Ng3 {[%clk 0:02:54]}  e6 {[%clk 0:02:49]} 10. Be2 {[%clk 0:02:52]}  exd5 {[%clk 0:02:49]} 11. cxd5 {[%clk 0:02:47]}  Bd7 {[%clk 0:02:36]} 12. O-O {[%clk 0:02:42]}  a6 {[%clk 0:02:30]} 13. a4 {[%clk 0:02:42]}  Rb8 {[%clk 0:02:30]} 14. a5 {[%clk 0:02:33]}  b5 {[%clk 0:02:23]} 15. axb6 {[%clk 0:02:34]}  Rxb6 {[%clk 0:02:23]} 16. Qc2 {[%clk 0:02:09]}  Bb5 {[%clk 0:01:55]} 17. Nxb5 {[%clk 0:01:53]}  axb5 {[%clk 0:01:56]} 18. b3 {[%clk 0:01:06]}  h5 {[%clk 0:01:47]} 19. Nh1 {[%clk 0:00:58]}  Re8 {[%clk 0:01:43]} 20. Nf2 {[%clk 0:00:56]}  Ned7 {[%clk 0:01:30]} 21. Bg5 {[%clk 0:00:36]}  Qc7 {[%clk 0:01:20]} 22. Ra5 {[%clk 0:00:36]}  Reb8 {[%clk 0:01:18]} 23. Rfa1 {[%clk 0:00:17]}  Nh7 {[%clk 0:01:14]} 24. Bd2 {[%clk 0:00:05]}  Bxa1 {[%clk 0:01:12]} 25. Rxa1 {[%clk 0:00:05]}  R6b7 {[%clk 0:01:06]} 26. f4 {[%clk 0:00:04]}  Ra7 {[%clk 0:01:01]} 27. Rf1 {[%clk 0:00:05]}  Rba8 {[%clk 0:01:01]} 28. Bxb5 {[%clk 0:00:04]}  Ra2 {[%clk 0:01:00]} 29. Qd3 {[%clk 0:00:02]}  Nhf6 {[%clk 0:01:00]} 30. Bc3 {[%clk 0:00:02]}  R8a3 {[%clk 0:00:45]} 31. e5 {[%clk 0:00:02]}  dxe5 {[%clk 0:00:41]} 32. d6 {[%clk 0:00:03]}  Qb6 {[%clk 0:00:32]} 33. fxe5 {[%clk 0:00:03]}  Rxb3 {[%clk 0:00:33]} 34. Bxd7 {[%clk 0:00:03]}  Nxd7 {[%clk 0:00:33]} 35. e6 {[%clk 0:00:04]}  Nf8 {[%clk 0:00:20]} 36. e7 {[%clk 0:00:03]}  Ra8 {[%clk 0:00:15]} 37. d7 {[%clk 0:00:02]}  Rxc3 {[%clk 0:00:03]} 38. Qxc3 {[%clk 0:00:02]}  Nxd7 {[%clk 0:00:03]} 39. Re1 {[%clk 0:00:02]}  Re8 {[%clk 0:00:02]} 40. Ne4 {[%clk 0:00:02]}  c4+ {[%clk 0:00:03]} 41. Kh1 {[%clk 0:00:00]}  Qe6 {[%clk 0:00:03]} 0-1

[Event "January 9 Late 2024"]
[Site "https://www.chess.com"]
[Date "2024.01.09"]
[Round "5"]
[White "Womacka, Mathias"]
[Black "Joie, Sebastien"]
[Result "1-0"]
[Board "112"]
[TimeControl "180+1"]
[WhiteFideId "4611390"]
[BlackFideId "650420"]
[WhiteElo "2587"]
[BlackElo "2447"]
[WhiteTeam "GER"]
[BlackTeam "FRA"]
[WhiteClock "0:00:15"]
[BlackClock "0:00:00"]

1. e4 {[%clk 0:03:00]}  c5 {[%clk 0:02:58]} 2. Nf3 {[%clk 0:02:58]}  Nc6 {[%clk 0:02:59]} 3. d4 {[%clk 0:02:57]}  cxd4 {[%clk 0:03:00]} 4. Nxd4 {[%clk 0:02:57]}  g6 {[%clk 0:03:01]} 5. c4 {[%clk 0:02:55]}  Bg7 {[%clk 0:03:01]} 6. Be3 {[%clk 0:02:56]}  Nf6 {[%clk 0:03:01]} 7. Nc3 {[%clk 0:02:55]}  O-O {[%clk 0:03:01]} 8. Be2 {[%clk 0:02:54]}  d6 {[%clk 0:03:01]} 9. O-O {[%clk 0:02:54]}  Bd7 {[%clk 0:03:01]} 10. Qd2 {[%clk 0:02:53]}  Nxd4 {[%clk 0:03:01]} 11. Bxd4 {[%clk 0:02:52]}  Bc6 {[%clk 0:03:02]} 12. f3 {[%clk 0:02:53]}  a5 {[%clk 0:03:03]} 13. b3 {[%clk 0:02:52]}  Nd7 {[%clk 0:03:03]} 14. Be3 {[%clk 0:02:51]}  Nc5 {[%clk 0:03:03]} 15. Rac1 {[%clk 0:02:52]}  e6 {[%clk 0:03:02]} 16. Rfd1 {[%clk 0:02:48]}  Be5 {[%clk 0:03:03]} 17. Bf1 {[%clk 0:02:48]}  Qe7 {[%clk 0:02:53]} 18. Nb5 {[%clk 0:02:43]}  Rfd8 {[%clk 0:02:02]} 19. Bg5 {[%clk 0:02:31]}  f6 {[%clk 0:01:50]} 20. Be3 {[%clk 0:02:29]}  f5 {[%clk 0:01:48]} 21. exf5 {[%clk 0:02:04]}  exf5 {[%clk 0:01:27]} 22. Bg5 {[%clk 0:01:50]}  Bf6 {[%clk 0:01:25]} 23. Bxf6 {[%clk 0:01:48]}  Qxf6 {[%clk 0:01:26]} 24. Nc7 {[%clk 0:01:07]}  Ra7 {[%clk 0:00:33]} 25. Nd5 {[%clk 0:01:06]}  Bxd5 {[%clk 0:00:32]} 26. Qxd5+ {[%clk 0:01:07]}  Kg7 {[%clk 0:00:30]} 27. Re1 {[%clk 0:01:06]}  b6 {[%clk 0:00:27]} 28. Rcd1 {[%clk 0:00:55]}  Re7 {[%clk 0:00:23]} 29. Qc6 {[%clk 0:00:50]}  Rxe1 {[%clk 0:00:12]} 30. Rxe1 {[%clk 0:00:51]}  Qd4+ {[%clk 0:00:13]} 31. Kh1 {[%clk 0:00:50]}  Qf2 {[%clk 0:00:13]} 32. Rd1 {[%clk 0:00:44]}  Kh6 {[%clk 0:00:06]} 33. h3 {[%clk 0:00:34]}  Re8 {[%clk 0:00:05]} 34. Qxd6 {[%clk 0:00:32]}  Re1 {[%clk 0:00:04]} 35. Rxe1 {[%clk 0:00:24]}  Qxe1 {[%clk 0:00:05]} 36. Kg1 {[%clk 0:00:24]}  a4 {[%clk 0:00:03]} 37. Qxb6 {[%clk 0:00:22]}  Qe3+ {[%clk 0:00:03]} 38. Kh1 {[%clk 0:00:20]}  Qf2 {[%clk 0:00:03]} 39. Kh2 {[%clk 0:00:20]}  axb3 {[%clk 0:00:02]} 40. axb3 {[%clk 0:00:19]}  Kg5 {[%clk 0:00:02]} 41. Qd8+ {[%clk 0:00:17]}  Kh6 {[%clk 0:00:00]} 42. Qf8+ {[%clk 0:00:15]} 1-0

[Event "January 9 Late 2024"]
[Site "https://www.chess.com"]
[Date "2024.01.09"]
[Round "5"]
[White "Bold, Andre"]
[Black "Avila Bautista, Roberto Al"]
[Result "0-1"]
[Board "113"]
[TimeControl "180+1"]
[WhiteFideId "16208471"]
[BlackFideId "5119987"]
[WhiteElo "2446"]
[BlackElo "2585"]
[WhiteTeam "GER"]
[BlackTeam "MEX"]
[WhiteClock "0:00:00"]
[BlackClock "0:00:03"]

1. d4 {[%clk 0:03:00]}  Nf6 {[%clk 0:02:59]} 2. Nf3 {[%clk 0:03:01]}  c5 {[%clk 0:02:58]} 3. c3 {[%clk 0:03:01]}  g6 {[%clk 0:02:58]} 4. e3 {[%clk 0:02:59]}  Bg7 {[%clk 0:02:58]} 5. Nbd2 {[%clk 0:02:59]}  O-O {[%clk 0:02:58]} 6. dxc5 {[%clk 0:02:59]}  Qc7 {[%clk 0:02:49]} 7. Nb3 {[%clk 0:02:52]}  a5 {[%clk 0:02:46]} 8. a4 {[%clk 0:02:50]}  Na6 {[%clk 0:02:20]} 9. Qd4 {[%clk 0:02:46]}  h5 {[%clk 0:01:57]} 10. Be2 {[%clk 0:02:44]}  Ng4 {[%clk 0:01:57]} 11. Qc4 {[%clk 0:02:40]}  b6 {[%clk 0:01:52]} 12. h3 {[%clk 0:02:31]}  Nf6 {[%clk 0:01:44]} 13. cxb6 {[%clk 0:02:27]}  Qxb6 {[%clk 0:01:45]} 14. Qb5 {[%clk 0:02:24]}  Qe6 {[%clk 0:01:27]} 15. Nfd4 {[%clk 0:02:16]}  Qd6 {[%clk 0:01:19]} 16. Nxa5 {[%clk 0:01:49]}  Rb8 {[%clk 0:01:13]} 17. Qd3 {[%clk 0:01:48]}  Nc5 {[%clk 0:01:13]} 18. Qd1 {[%clk 0:01:46]}  Qb6 {[%clk 0:00:49]} 19. Nc4 {[%clk 0:01:44]}  Qa7 {[%clk 0:00:49]} 20. O-O {[%clk 0:01:41]}  d5 {[%clk 0:00:48]} 21. Nd2 {[%clk 0:01:30]}  e5 {[%clk 0:00:48]} 22. Nb5 {[%clk 0:01:27]}  Qe7 {[%clk 0:00:46]} 23. b4 {[%clk 0:01:26]}  Nce4 {[%clk 0:00:45]} 24. Bb2 {[%clk 0:01:20]}  Be6 {[%clk 0:00:41]} 25. a5 {[%clk 0:01:10]}  Nxd2 {[%clk 0:00:40]} 26. Qxd2 {[%clk 0:01:09]}  Ne4 {[%clk 0:00:41]} 27. Qe1 {[%clk 0:01:01]}  Qg5 {[%clk 0:00:41]} 28. Kh2 {[%clk 0:00:53]}  Bd7 {[%clk 0:00:17]} 29. Na3 {[%clk 0:00:47]}  f5 {[%clk 0:00:15]} 30. Nc2 {[%clk 0:00:46]}  f4 {[%clk 0:00:15]} 31. Bf3 {[%clk 0:00:44]}  Bf5 {[%clk 0:00:12]} 32. a6 {[%clk 0:00:34]}  Nf6 {[%clk 0:00:12]} 33. Bd1 {[%clk 0:00:29]}  e4 {[%clk 0:00:08]} 34. a7 {[%clk 0:00:28]}  Ra8 {[%clk 0:00:08]} 35. Nd4 {[%clk 0:00:28]}  Bc8 {[%clk 0:00:08]} 36. b5 {[%clk 0:00:27]}  Nd7 {[%clk 0:00:07]} 37. Ne6 {[%clk 0:00:23]}  Qe5 {[%clk 0:00:06]} 38. Nxf8 {[%clk 0:00:19]}  fxe3+ {[%clk 0:00:06]} 39. Kg1 {[%clk 0:00:17]}  exf2+ {[%clk 0:00:05]} 40. Qxf2 {[%clk 0:00:17]}  Nxf8 {[%clk 0:00:04]} 41. Qf7+ {[%clk 0:00:16]}  Kh7 {[%clk 0:00:04]} 42. Ra2 {[%clk 0:00:15]}  Qd6 {[%clk 0:00:01]} 43. c4 {[%clk 0:00:13]}  Qb6+ {[%clk 0:00:01]} 44. Kh1 {[%clk 0:00:09]}  d4 {[%clk 0:00:01]} 45. c5 {[%clk 0:00:04]}  Qxc5 {[%clk 0:00:01]} 46. Ba3 {[%clk 0:00:05]}  Be6 {[%clk 0:00:01]} 47. Bxc5 {[%clk 0:00:05]}  Bxf7 {[%clk 0:00:01]} 48. Rxf7 {[%clk 0:00:05]}  Ne6 {[%clk 0:00:02]} 49. Bd6 {[%clk 0:00:02]}  d3 {[%clk 0:00:02]} 50. Rb7 {[%clk 0:00:03]}  e3 {[%clk 0:00:02]} 51. Rb8 {[%clk 0:00:03]}  Rxa7 {[%clk 0:00:02]} 52. Rxa7 {[%clk 0:00:03]}  e2 {[%clk 0:00:02]} 53. Bxe2 {[%clk 0:00:03]}  dxe2 {[%clk 0:00:03]} 54. Ra1 {[%clk 0:00:04]}  Bxa1 {[%clk 0:00:03]} 55. Bg3 {[%clk 0:00:00]}  Be5 {[%clk 0:00:03]} 0-1

[Event "January 9 Late 2024"]
[Site "https://www.chess.com"]
[Date "2024.01.09"]
[Round "5"]
[White "Mazurkiewicz, Michal"]
[Black "Yagupov, Igor"]
[Result "0-1"]
[Board "114"]
[TimeControl "180+1"]
[WhiteFideId "1124943"]
[BlackFideId "4113632"]
[WhiteElo "2446"]
[BlackElo "2578"]
[WhiteTeam "POL"]
[BlackTeam "RUS"]
[WhiteClock "0:00:00"]
[BlackClock "0:00:09"]

1. e4 {[%clk 0:02:59]}  c5 {[%clk 0:02:53]} 2. Nf3 {[%clk 0:02:59]}  e6 {[%clk 0:02:52]} 3. d3 {[%clk 0:02:59]}  Nc6 {[%clk 0:02:51]} 4. g3 {[%clk 0:02:59]}  Nge7 {[%clk 0:02:51]} 5. Bg2 {[%clk 0:02:59]}  g6 {[%clk 0:02:52]} 6. O-O {[%clk 0:02:59]}  Bg7 {[%clk 0:02:52]} 7. Re1 {[%clk 0:02:59]}  d6 {[%clk 0:02:49]} 8. c3 {[%clk 0:02:58]}  e5 {[%clk 0:02:49]} 9. h3 {[%clk 0:02:56]}  O-O {[%clk 0:02:48]} 10. Na3 {[%clk 0:02:46]}  h6 {[%clk 0:02:31]} 11. Nc4 {[%clk 0:02:45]}  Be6 {[%clk 0:02:25]} 12. a4 {[%clk 0:02:33]}  Qd7 {[%clk 0:02:24]} 13. Kh2 {[%clk 0:02:34]}  f5 {[%clk 0:02:20]} 14. Qe2 {[%clk 0:01:51]}  Rae8 {[%clk 0:02:16]} 15. Nh4 {[%clk 0:01:28]}  f4 {[%clk 0:01:40]} 16. g4 {[%clk 0:01:10]}  b6 {[%clk 0:01:22]} 17. Bf3 {[%clk 0:00:58]}  Rb8 {[%clk 0:01:15]} 18. Rg1 {[%clk 0:00:56]}  Bf6 {[%clk 0:01:10]} 19. Ng2 {[%clk 0:00:55]}  Kh7 {[%clk 0:01:06]} 20. Ne1 {[%clk 0:00:45]}  a6 {[%clk 0:01:04]} 21. Nc2 {[%clk 0:00:41]}  b5 {[%clk 0:01:03]} 22. axb5 {[%clk 0:00:42]}  axb5 {[%clk 0:01:04]} 23. Na5 {[%clk 0:00:37]}  Nxa5 {[%clk 0:00:58]} 24. Rxa5 {[%clk 0:00:36]}  Nc6 {[%clk 0:00:58]} 25. Ra1 {[%clk 0:00:32]}  b4 {[%clk 0:00:52]} 26. Bd2 {[%clk 0:00:31]}  bxc3 {[%clk 0:00:50]} 27. bxc3 {[%clk 0:00:17]}  Rb2 {[%clk 0:00:49]} 28. Na3 {[%clk 0:00:17]}  Na5 {[%clk 0:00:38]} 29. Rgb1 {[%clk 0:00:16]}  Rfb8 {[%clk 0:00:37]} 30. Qd1 {[%clk 0:00:16]}  Rxb1 {[%clk 0:00:28]} 31. Rxb1 {[%clk 0:00:16]}  Rxb1 {[%clk 0:00:28]} 32. Qxb1 {[%clk 0:00:17]}  Nb3 {[%clk 0:00:26]} 33. Be1 {[%clk 0:00:13]}  Qa4 {[%clk 0:00:24]} 34. Nc4 {[%clk 0:00:05]}  Bxc4 {[%clk 0:00:20]} 35. dxc4 {[%clk 0:00:06]}  Na5 {[%clk 0:00:10]} 36. Qb8 {[%clk 0:00:04]}  Bg7 {[%clk 0:00:11]} 37. Qxd6 {[%clk 0:00:04]}  Qxc4 {[%clk 0:00:10]} 38. g5 {[%clk 0:00:00]}  Qf1 {[%clk 0:00:09]} 0-1

[Event "January 9 Late 2024"]
[Site "https://www.chess.com"]
[Date "2024.01.09"]
[Round "5"]
[White "Ambartsumova, Karina"]
[Black "Jarocka, Liwia"]
[Result "1-0"]
[Board "118"]
[TimeControl "180+1"]
[WhiteFideId "4166299"]
[BlackFideId "21807558"]
[WhiteElo "2571"]
[BlackElo "2418"]
[WhiteTeam "RUS"]
[BlackTeam "POL"]
[WhiteClock "0:00:18"]
[BlackClock "0:00:39"]

1. d4 {[%clk 0:03:00]}  c6 {[%clk 0:02:56]} 2. c4 {[%clk 0:02:59]}  d5 {[%clk 0:02:56]} 3. Nf3 {[%clk 0:02:59]}  Nf6 {[%clk 0:02:56]} 4. g3 {[%clk 0:03:00]}  e6 {[%clk 0:02:55]} 5. Bg2 {[%clk 0:03:00]}  Bb4+ {[%clk 0:02:55]} 6. Nc3 {[%clk 0:02:59]}  dxc4 {[%clk 0:02:54]} 7. Ne5 {[%clk 0:02:57]}  O-O {[%clk 0:02:52]} 8. O-O {[%clk 0:02:53]}  Nd5 {[%clk 0:02:49]} 9. Bd2 {[%clk 0:02:43]}  Bxc3 {[%clk 0:02:44]} 10. bxc3 {[%clk 0:02:43]}  b5 {[%clk 0:02:44]} 11. e4 {[%clk 0:02:43]}  Nb6 {[%clk 0:02:43]} 12. f4 {[%clk 0:02:23]}  Bb7 {[%clk 0:02:40]} 13. f5 {[%clk 0:01:52]}  exf5 {[%clk 0:02:38]} 14. Rxf5 {[%clk 0:01:52]}  N8d7 {[%clk 0:02:33]} 15. Ng4 {[%clk 0:01:50]}  Rc8 {[%clk 0:02:24]} 16. e5 {[%clk 0:01:49]}  Nd5 {[%clk 0:02:20]} 17. Be4 {[%clk 0:01:07]}  g6 {[%clk 0:01:55]} 18. Rf2 {[%clk 0:00:54]}  c5 {[%clk 0:01:50]} 19. Qf3 {[%clk 0:00:48]}  cxd4 {[%clk 0:01:36]} 20. Bxd5 {[%clk 0:00:40]}  Bxd5 {[%clk 0:01:30]} 21. Qxd5 {[%clk 0:00:38]}  dxc3 {[%clk 0:01:30]} 22. Bxc3 {[%clk 0:00:35]}  Qg5 {[%clk 0:01:22]} 23. Qxd7 {[%clk 0:00:32]}  Rcd8 {[%clk 0:01:21]} 24. Bd2 {[%clk 0:00:18]}  Qf5 {[%clk 0:00:42]} 25. Nh6+ {[%clk 0:00:18]}  Kh8 {[%clk 0:00:41]} 26. Qxd8 {[%clk 0:00:17]}  Qxf2+ {[%clk 0:00:40]} 27. Kxf2 {[%clk 0:00:18]}  Rxd8 {[%clk 0:00:39]} 28. Nxf7+ {[%clk 0:00:18]} 1-0

[Event "January 9 Late 2024"]
[Site "https://www.chess.com"]
[Date "2024.01.09"]
[Round "5"]
[White "Asish Panda"]
[Black "Marchesich, Giovanni"]
[Result "1-0"]
[Board "120"]
[TimeControl "180+1"]
[WhiteFideId "45012458"]
[BlackFideId "2824790"]
[WhiteElo "2568"]
[BlackElo "2413"]
[WhiteTeam "IND"]
[BlackTeam "ITA"]
[WhiteClock "0:01:00"]
[BlackClock "0:00:58"]

1. e4 {[%clk 0:03:00]}  g6 {[%clk 0:03:00]} 2. g3 {[%clk 0:02:59]}  Bg7 {[%clk 0:02:59]} 3. Bg2 {[%clk 0:02:59]}  c5 {[%clk 0:02:53]} 4. Ne2 {[%clk 0:02:58]}  Nc6 {[%clk 0:02:52]} 5. O-O {[%clk 0:02:59]}  e5 {[%clk 0:02:48]} 6. c3 {[%clk 0:02:54]}  d6 {[%clk 0:02:45]} 7. Na3 {[%clk 0:02:48]}  Nge7 {[%clk 0:02:44]} 8. Nc2 {[%clk 0:02:26]}  O-O {[%clk 0:02:39]} 9. d4 {[%clk 0:02:25]}  cxd4 {[%clk 0:02:39]} 10. cxd4 {[%clk 0:02:24]}  Bg4 {[%clk 0:02:26]} 11. d5 {[%clk 0:02:22]}  Nd4 {[%clk 0:02:18]} 12. Ncxd4 {[%clk 0:02:15]}  exd4 {[%clk 0:02:19]} 13. f3 {[%clk 0:02:14]}  Qb6 {[%clk 0:02:16]} 14. fxg4 {[%clk 0:02:07]}  d3+ {[%clk 0:02:16]} 15. Kh1 {[%clk 0:02:07]}  dxe2 {[%clk 0:02:10]} 16. Qxe2 {[%clk 0:02:08]}  Rac8 {[%clk 0:02:08]} 17. Bg5 {[%clk 0:01:56]}  Rfe8 {[%clk 0:02:04]} 18. Qf3 {[%clk 0:01:32]}  Qxb2 {[%clk 0:01:29]} 19. Qxf7+ {[%clk 0:01:29]}  Kh8 {[%clk 0:01:30]} 20. Rab1 {[%clk 0:01:18]}  Qe5 {[%clk 0:01:27]} 21. Rxb7 {[%clk 0:01:13]}  Ng8 {[%clk 0:00:58]} 22. Bf6 {[%clk 0:01:00]} 1-0

[Event "January 9 Late 2024"]
[Site "https://www.chess.com"]
[Date "2024.01.09"]
[Round "5"]
[White "Lin, Bryan Enming"]
[Black "Figorito, Nick"]
[Result "1-0"]
[Board "122"]
[TimeControl "180+1"]
[WhiteFideId "30987121"]
[BlackFideId "30923689"]
[WhiteElo "2560"]
[BlackElo "2408"]
[WhiteTeam "USA"]
[BlackTeam "USA"]
[WhiteClock "0:00:55"]
[BlackClock "0:00:04"]

1. e4 {[%clk 0:02:59]}  e6 {[%clk 0:03:00]} 2. d4 {[%clk 0:02:59]}  d5 {[%clk 0:03:01]} 3. Nd2 {[%clk 0:03:00]}  Nf6 {[%clk 0:03:00]} 4. e5 {[%clk 0:03:00]}  Nfd7 {[%clk 0:03:01]} 5. f4 {[%clk 0:03:00]}  c5 {[%clk 0:03:02]} 6. c3 {[%clk 0:03:01]}  Nc6 {[%clk 0:03:03]} 7. Ndf3 {[%clk 0:03:01]}  Be7 {[%clk 0:02:58]} 8. Bd3 {[%clk 0:02:58]}  Qb6 {[%clk 0:02:55]} 9. Ne2 {[%clk 0:02:56]}  a5 {[%clk 0:02:39]} 10. a4 {[%clk 0:02:45]}  g6 {[%clk 0:02:37]} 11. b3 {[%clk 0:02:18]}  cxd4 {[%clk 0:02:27]} 12. cxd4 {[%clk 0:02:18]}  Nb4 {[%clk 0:02:27]} 13. Bb5 {[%clk 0:02:18]}  h5 {[%clk 0:02:20]} 14. Be3 {[%clk 0:02:13]}  Kf8 {[%clk 0:02:05]} 15. Kf2 {[%clk 0:02:11]}  Nb8 {[%clk 0:02:03]} 16. g3 {[%clk 0:02:10]}  Bd7 {[%clk 0:02:02]} 17. Nc3 {[%clk 0:02:08]}  Bxb5 {[%clk 0:02:00]} 18. Nxb5 {[%clk 0:02:07]}  N8c6 {[%clk 0:01:52]} 19. h3 {[%clk 0:02:07]}  Rc8 {[%clk 0:01:49]} 20. Rc1 {[%clk 0:02:06]}  Kg7 {[%clk 0:01:48]} 21. g4 {[%clk 0:02:06]}  hxg4 {[%clk 0:01:47]} 22. hxg4 {[%clk 0:02:07]}  Rxh1 {[%clk 0:01:47]} 23. Qxh1 {[%clk 0:02:08]}  Nd3+ {[%clk 0:01:40]} 24. Kg3 {[%clk 0:02:08]}  Nxc1 {[%clk 0:01:39]} 25. f5 {[%clk 0:02:08]}  exf5 {[%clk 0:01:32]} 26. gxf5 {[%clk 0:02:06]}  Ne2+ {[%clk 0:01:24]} 27. Kf2 {[%clk 0:02:05]}  Rh8 {[%clk 0:01:04]} 28. f6+ {[%clk 0:02:04]}  Kg8 {[%clk 0:00:50]} 29. fxe7 {[%clk 0:01:56]}  Nxe7 {[%clk 0:00:48]} 30. Qd1 {[%clk 0:01:54]}  Nf5 {[%clk 0:00:34]} 31. Qxe2 {[%clk 0:01:49]}  Nxe3 {[%clk 0:00:27]} 32. Qxe3 {[%clk 0:01:47]}  Qc6 {[%clk 0:00:23]} 33. Qc3 {[%clk 0:01:46]}  Qxc3 {[%clk 0:00:18]} 34. Nxc3 {[%clk 0:01:47]}  Kg7 {[%clk 0:00:18]} 35. Nxd5 {[%clk 0:01:47]}  Rc8 {[%clk 0:00:17]} 36. Nb6 {[%clk 0:01:41]}  Rc3 {[%clk 0:00:15]} 37. Nd2 {[%clk 0:01:40]}  Rd3 {[%clk 0:00:13]} 38. Ke2 {[%clk 0:01:26]}  Rxd4 {[%clk 0:00:14]} 39. Ndc4 {[%clk 0:01:27]}  Rh4 {[%clk 0:00:09]} 40. Nxa5 {[%clk 0:01:21]}  Re4+ {[%clk 0:00:08]} 41. Kd3 {[%clk 0:01:20]}  Rxe5 {[%clk 0:00:08]} 42. Nxb7 {[%clk 0:01:20]}  g5 {[%clk 0:00:08]} 43. a5 {[%clk 0:01:21]}  g4 {[%clk 0:00:06]} 44. Nc4 {[%clk 0:01:09]}  Rb5 {[%clk 0:00:05]} 45. a6 {[%clk 0:00:59]}  Rxb3+ {[%clk 0:00:05]} 46. Ke2 {[%clk 0:00:59]}  g3 {[%clk 0:00:05]} 47. a7 {[%clk 0:00:56]}  g2 {[%clk 0:00:05]} 48. Kf2 {[%clk 0:00:57]}  Rg3 {[%clk 0:00:02]} 49. Kg1 {[%clk 0:00:57]}  Rc3 {[%clk 0:00:02]} 50. a8=Q {[%clk 0:00:57]}  Rxc4 {[%clk 0:00:03]} 51. Kxg2 {[%clk 0:00:56]}  Rg4+ {[%clk 0:00:04]} 52. Kf3 {[%clk 0:00:57]}  Rg6 {[%clk 0:00:04]} 53. Nd8 {[%clk 0:00:56]}  Rf6+ {[%clk 0:00:04]} 54. Ke4 {[%clk 0:00:57]}  Rg6 {[%clk 0:00:04]} 55. Qa1+ {[%clk 0:00:57]}  Kh7 {[%clk 0:00:04]} 56. Nxf7 {[%clk 0:00:56]}  Kg8 {[%clk 0:00:03]} 57. Ne5 {[%clk 0:00:55]}  Re6 {[%clk 0:00:03]} 58. Qa2 {[%clk 0:00:55]}  Kg7 {[%clk 0:00:02]} 59. Qxe6 {[%clk 0:00:54]}  Kh7 {[%clk 0:00:03]} 60. Qf7+ {[%clk 0:00:55]}  Kh8 {[%clk 0:00:04]} 61. Ng6# {[%clk 0:00:55]} 1-0

[Event "January 9 Late 2024"]
[Site "https://www.chess.com"]
[Date "2024.01.09"]
[Round "5"]
[White "Gao, Raymond"]
[Black "Potapova, Margarita"]
[Result "0-1"]
[Board "128"]
[TimeControl "180+1"]
[WhiteFideId "2629429"]
[BlackFideId "14126869"]
[WhiteElo "2376"]
[BlackElo "2552"]
[WhiteTeam "CAN"]
[BlackTeam "RUS"]
[WhiteClock "0:02:03"]
[BlackClock "0:01:46"]

1. Na3 {[%clk 0:02:56]}  e5 {[%clk 0:02:54]} 2. c3 {[%clk 0:02:56]}  d5 {[%clk 0:02:49]} 3. d4 {[%clk 0:02:50]}  e4 {[%clk 0:02:32]} 4. Bf4 {[%clk 0:02:49]}  Nf6 {[%clk 0:02:29]} 5. e3 {[%clk 0:02:47]}  Bd6 {[%clk 0:02:26]} 6. Bxd6 {[%clk 0:02:46]}  Qxd6 {[%clk 0:02:27]} 7. Ne2 {[%clk 0:02:44]}  O-O {[%clk 0:02:27]} 8. c4 {[%clk 0:02:42]}  dxc4 {[%clk 0:02:23]} 9. Nxc4 {[%clk 0:02:33]}  Qe7 {[%clk 0:02:23]} 10. Nc3 {[%clk 0:02:32]}  Nc6 {[%clk 0:02:22]} 11. Be2 {[%clk 0:02:30]}  h5 {[%clk 0:02:17]} 12. Bxh5 {[%clk 0:02:21]}  Nb4 {[%clk 0:01:56]} 13. Be2 {[%clk 0:02:17]}  Bf5 {[%clk 0:01:54]} 14. Ne5 {[%clk 0:02:11]}  c5 {[%clk 0:01:51]} 15. a3 {[%clk 0:02:06]}  cxd4 {[%clk 0:01:50]} 16. axb4 {[%clk 0:02:06]}  dxc3 {[%clk 0:01:46]} 17. bxc3 {[%clk 0:02:03]}  Qxe5 {[%clk 0:01:46]} 0-1

[Event "January 9 Late 2024"]
[Site "https://www.chess.com"]
[Date "2024.01.09"]
[Round "5"]
[White "Luukkonen, Tommi"]
[Black "Grutter, Tim"]
[Result "1-0"]
[Board "130"]
[TimeControl "180+1"]
[WhiteFideId "501808"]
[BlackFideId "1057472"]
[WhiteElo "2373"]
[BlackElo "2550"]
[WhiteTeam "FIN"]
[BlackTeam "NED"]
[WhiteClock "0:01:42"]
[BlackClock "0:00:00"]

1. d4 {[%clk 0:02:54]}  Nf6 {[%clk 0:02:59]} 2. c4 {[%clk 0:02:54]}  e6 {[%clk 0:03:00]} 3. Nc3 {[%clk 0:02:54]}  d5 {[%clk 0:03:00]} 4. cxd5 {[%clk 0:02:53]}  exd5 {[%clk 0:03:01]} 5. Bg5 {[%clk 0:02:53]}  Be7 {[%clk 0:03:01]} 6. Qc2 {[%clk 0:02:53]}  c6 {[%clk 0:03:01]} 7. e3 {[%clk 0:02:53]}  O-O {[%clk 0:03:00]} 8. Bd3 {[%clk 0:02:53]}  h6 {[%clk 0:02:57]} 9. Bf4 {[%clk 0:02:53]}  Bd6 {[%clk 0:02:44]} 10. Nge2 {[%clk 0:02:52]}  Be6 {[%clk 0:02:41]} 11. h3 {[%clk 0:02:52]}  Re8 {[%clk 0:02:34]} 12. O-O-O {[%clk 0:02:50]}  b5 {[%clk 0:02:33]} 13. g4 {[%clk 0:02:49]}  a5 {[%clk 0:02:30]} 14. Rhg1 {[%clk 0:02:43]}  a4 {[%clk 0:02:29]} 15. g5 {[%clk 0:02:43]}  hxg5 {[%clk 0:02:30]} 16. Bxg5 {[%clk 0:02:42]}  Na6 {[%clk 0:02:23]} 17. Nf4 {[%clk 0:02:31]}  Nb4 {[%clk 0:02:19]} 18. Qe2 {[%clk 0:02:30]}  Nxd3+ {[%clk 0:02:13]} 19. Qxd3 {[%clk 0:02:30]}  Be7 {[%clk 0:01:51]} 20. Nxe6 {[%clk 0:02:30]}  fxe6 {[%clk 0:01:52]} 21. Qg6 {[%clk 0:02:30]}  Qd7 {[%clk 0:01:16]} 22. Bh6 {[%clk 0:02:25]}  Bf8 {[%clk 0:01:12]} 23. Qxf6 {[%clk 0:02:24]}  Kh8 {[%clk 0:00:59]} 24. Qg6 {[%clk 0:02:24]}  b4 {[%clk 0:00:49]} 25. Ne2 {[%clk 0:02:20]}  e5 {[%clk 0:00:47]} 26. dxe5 {[%clk 0:01:55]}  Re6 {[%clk 0:00:46]} 27. Qg4 {[%clk 0:01:55]}  b3 {[%clk 0:00:23]} 28. a3 {[%clk 0:01:54]}  Qe7 {[%clk 0:00:17]} 29. Bf4 {[%clk 0:01:52]}  Qc5+ {[%clk 0:00:13]} 30. Nc3 {[%clk 0:01:47]}  Qe7 {[%clk 0:00:09]} 31. Bg5 {[%clk 0:01:45]}  Qe8 {[%clk 0:00:07]} 32. f4 {[%clk 0:01:45]}  Rc8 {[%clk 0:00:00]} 33. Bf6 {[%clk 0:01:42]} 1-0